bitfinex/quotes_BTCUSD_20251011
["timestamp","ask_amount","ask_price","bid_price","bid_amount"]
[1760211155155,0.00096182,111540.0,111530.0,0.25148948]
[1760211155936,0.18026969,111540.0,111530.0,0.25148948]
[1760211156231,0.19840335,111550.0,111530.0,0.20471394]
[1760211156440,0.20270787,111540.0,111520.0,0.2165099]
[1760211156653,0.22181787,111540.0,111530.0,0.17932394]
[1760211156854,0.25723787,111540.0,111530.0,0.17932394]
[1760211157058,0.25723787,111540.0,111530.0,0.21890732]
[1760211157193,0.22181787,111540.0,111530.0,0.21890732]
[1760211157401,0.22181787,111540.0,111530.0,0.03958338]
[1760211157629,0.22181787,111540.0,111520.0,0.02609988]
[1760211157630,0.17932394,111530.0,111520.0,0.02609988]
[1760211157867,0.83218002,111530.0,111520.0,0.02609988]
[1760211158180,0.89100002,111530.0,111520.0,0.02609988]
[1760211158578,0.25725394,111530.0,111520.0,0.02609988]
[1760211159199,0.25725394,111530.0,111520.0,0.02709988]
[1760211159598,0.25725394,111530.0,111520.0,0.04774544]
[1760211159914,0.22183394,111530.0,111520.0,0.03891988]
[1760211160118,0.25725394,111530.0,111520.0,0.02809988]
[1760211160675,1.23100002,111530.0,111520.0,0.02809988]
[1760211161835,1.23100002,111530.0,111520.0,0.02709712]
[1760211162936,0.56183394,111530.0,111520.0,0.03774712]
[1760211163234,0.59839394,111530.0,111520.0,0.03566786]
[1760211163552,1.23214002,111530.0,111520.0,0.01395769]
[1760211163987,0.59839394,111530.0,111520.0,0.01395769]
[1760211164196,1.23214002,111530.0,111520.0,0.01395769]
[1760211164331,1.23218002,111530.0,111520.0,0.01395769]
[1760211168180,5.57075402,111530.0,111520.0,0.00073601]
[1760211168684,5.65947336,111530.0,111520.0,0.00073601]
[1760211168862,5.57075402,111530.0,111520.0,0.00073601]
[1760211171585,0.59843394,111530.0,111520.0,0.00073601]
[1760211171786,1.23218002,111530.0,111520.0,0.00073601]
[1760211171984,1.23218002,111530.0,111520.0,0.03761601]
[1760211171985,0.56187394,111530.0,111520.0,0.03761601]
[1760211172413,4e-05,111530.0,111520.0,0.21695603]
[1760211172615,4e-05,111530.0,111520.0,0.27830627]
[1760211173019,4e-05,111530.0,111520.0,0.91205235]
[1760211173346,4e-05,111530.0,111520.0,0.27830627]
[1760211173682,4e-05,111530.0,111520.0,0.30845817]
[1760211174180,4e-05,111530.0,111520.0,0.30945817]
[1760211174380,4e-05,111530.0,111520.0,0.31045817]
[1760211174594,4e-05,111530.0,111520.0,0.28030627]
[1760211177979,4e-05,111530.0,111520.0,0.94420425]
[1760211178239,4e-05,111530.0,111520.0,1.28420425]
[1760211178976,4e-05,111530.0,111520.0,0.65045817]
[1760211179221,4e-05,111530.0,111520.0,1.28420425]
[1760211179418,0.18747721,111560.0,111540.0,0.17929478]
[1760211179598,0.20640721,111560.0,111550.0,0.01007]
[1760211180062,0.17929179,111550.0,111540.0,0.04615629]
[1760211180301,0.17930787,111540.0,111530.0,0.17931936]
[1760211180506,0.17930787,111540.0,111530.0,0.20454936]
[1760211181077,0.20640721,111560.0,111540.0,0.17930787]
[1760211181283,0.54640721,111560.0,111550.0,0.0353]
[1760211181493,0.60674721,111560.0,111550.0,0.01007]
[1760211181769,0.60674721,111560.0,111550.0,0.02900779]
[1760211182180,0.60674721,111560.0,111550.0,0.01893779]
[1760211182314,0.17929179,111550.0,111540.0,0.01007]
[1760211182520,0.17930787,111540.0,111530.0,0.17932394]
[1760211182721,0.22201787,111540.0,111530.0,0.17932394]
[1760211182951,0.22201787,111540.0,111520.0,0.21285309]
[1760211183151,0.23481394,111530.0,111520.0,0.28050144]
[1760211183421,0.25859394,111530.0,111520.0,0.03985158]
[1760211183553,0.25859394,111530.0,111520.0,0.00015144]
[1760211183752,0.89234002,111530.0,111520.0,0.00015144]
[1760211184205,1.23234002,111530.0,111520.0,0.00015144]
[1760211184818,1.23234002,111530.0,111520.0,0.00115144]
[1760211185021,5.57091402,111530.0,111520.0,0.00115144]
[1760211185194,0.51937219,111500.0,111490.0,0.0004]
[1760211185399,1.20182501,111500.0,111490.0,0.00055149]
[1760211185615,1.26216501,111500.0,111490.0,0.00055149]
[1760211186120,1.23238827,111500.0,111490.0,0.00055149]
[1760211186489,1.23238827,111500.0,111490.0,0.00155149]
[1760211186908,1.23238827,111500.0,111490.0,0.00055149]
[1760211188507,1.91761536,111500.0,111490.0,0.00055149]
[1760211188711,0.17940437,111480.0,111470.0,0.0004]
[1760211188920,5.17065445,111480.0,111470.0,0.00045028]
[1760211189175,5.26077119,111480.0,111470.0,0.00045028]
[1760211189394,5.34949053,111480.0,111470.0,0.00045028]
[1760211190108,5.68949053,111480.0,111470.0,0.00045028]
[1760211190306,5.68949053,111480.0,111470.0,1e-08]
[1760211190864,5.68949053,111480.0,111470.0,0.00447114]
[1760211191075,1.41205417,111480.0,111470.0,0.00447114]
[1760211191281,5.75062817,111480.0,111470.0,0.00447114]
[1760211191458,5.75062817,111480.0,111470.0,1e-08]
[1760211191666,5.77562816,111480.0,111470.0,1e-08]
[1760211191894,5.74464242,111480.0,111470.0,1e-08]
[1760211192245,5.74564242,111480.0,111470.0,1e-08]
[1760211192461,1.40706842,111480.0,111470.0,1e-08]
[1760211192681,5.74564242,111480.0,111470.0,1e-08]
[1760211192956,4.96802511,111480.0,111470.0,1e-08]
[1760211193160,5.57659385,111480.0,111470.0,1e-08]
[1760211193862,0.89442045,111480.0,111470.0,1e-08]
[1760211194254,0.22579437,111480.0,111470.0,0.02466001]
[1760211194462,0.18140437,111480.0,111470.0,0.20408048]
[1760211194677,0.18140437,111480.0,111470.0,0.06620962]
[1760211194905,0.22471437,111480.0,111470.0,0.24563009]
[1760211195132,0.18040437,111480.0,111470.0,0.06620962]
[1760211195340,0.89601045,111480.0,111470.0,0.04154962]
[1760211195576,1.23601045,111480.0,111470.0,1e-08]
[1760211195998,1.23501045,111480.0,111470.0,1e-08]
[1760211196226,0.56271437,111480.0,111470.0,1e-08]
[1760211196438,1.23501045,111480.0,111470.0,1e-08]
[1760211196718,0.19725437,111480.0,111470.0,0.02466001]
[1760211196939,0.83207752,111490.0,111470.0,0.22552702]
[1760211197164,0.01893,111490.0,111480.0,0.19105437]
[1760211197382,0.17938828,111490.0,111480.0,0.21571437]
[1760211197600,0.17938828,111490.0,111470.0,0.02144654]
[1760211197601,0.17940437,111480.0,111470.0,0.02144654]
[1760211197821,0.17942047,111470.0,111460.0,0.01037]
[1760211198046,0.22273047,111470.0,111460.0,0.01046066]
[1760211198261,0.26128047,111470.0,111460.0,0.01046066]
[1760211198478,0.89502655,111470.0,111460.0,0.00049066]
[1760211199949,0.17942047,111470.0,111460.0,0.21455722]
[1760211200174,0.17942047,111470.0,111460.0,0.07672336]
[1760211200462,0.89502655,111470.0,111460.0,0.00049066]
[1760211200839,0.85647655,111470.0,111460.0,0.00049066]
[1760211201380,0.89502655,111470.0,111460.0,0.00049066]
[1760211201607,1.23502655,111470.0,111460.0,0.00049066]
[1760211202641,1.19647655,111470.0,111460.0,0.00107572]
[1760211202872,0.56273047,111470.0,111460.0,0.00107572]
[1760211203000,0.60128047,111470.0,111460.0,0.00107572]
[1760211203200,0.56273047,111470.0,111460.0,0.01104572]
[1760211203528,1.23502655,111470.0,111460.0,0.00107572]
[1760211204583,0.2049098,111470.0,111460.0,0.01104572]
[1760211204793,0.2434598,111470.0,111460.0,0.00107572]
[1760211205226,0.18036686,111480.0,111460.0,0.21514228]
[1760211205447,0.00096249,111480.0,111470.0,0.21533047]
[1760211205674,0.00096249,111480.0,111470.0,0.23999047]
[1760211206110,0.85742294,111480.0,111460.0,0.03438195]
[1760211206329,0.83101655,111470.0,111460.0,0.03438195]
[1760211206558,0.83101655,111470.0,111460.0,0.18051228]
[1760211206789,0.19727047,111470.0,111460.0,0.03570572]
[1760211206994,0.17942047,111470.0,111460.0,0.07161572]
[1760211207207,0.17942047,111470.0,111460.0,0.03570572]
[1760211208356,0.85647655,111470.0,111460.0,0.00107572]
[1760211208565,0.89502655,111470.0,111460.0,0.00207572]
[1760211208802,0.89502655,111470.0,111460.0,0.00307572]
[1760211209733,0.89502655,111470.0,111460.0,0.00207572]
[1760211209972,0.89502655,111470.0,111460.0,0.00107572]
[1760211210428,0.22273047,111470.0,111460.0,0.00107572]
[1760211210645,0.89502655,111470.0,111460.0,0.00107572]
[1760211211985,0.81318264,111460.0,111450.0,0.00019514]
[1760211212184,0.81318264,111460.0,111450.0,0.00028594]
[1760211212391,0.81318264,111460.0,111450.0,0.02494594]
[1760211212598,0.17943656,111460.0,111450.0,0.02494594]
[1760211212791,0.22274656,111460.0,111450.0,0.02659755]
[1760211213135,0.22274656,111460.0,111450.0,0.02759755]
[1760211213356,0.22274656,111460.0,111450.0,0.00128594]
[1760211214199,0.22274656,111460.0,111450.0,0.00228594]
[1760211214417,1.49062795,111460.0,111450.0,0.0020908]
[1760211215887,5.85897869,111460.0,111450.0,0.0020908]
[1760211216102,5.87556145,111460.0,111450.0,0.0020908]
[1760211216313,5.96428079,111460.0,111450.0,0.0020908]
[1760211217174,5.96428079,111460.0,111450.0,0.0010908]
[1760211217175,5.98338011,111460.0,111450.0,0.0010908]
[1760211217598,5.98338011,111460.0,111450.0,0.00167592]
[1760211218045,0.63697864,111460.0,111450.0,0.00067592]
[1760211218284,1.50721071,111460.0,111450.0,0.00067592]
[1760211218526,0.51946877,111440.0,111430.0,0.00586168]
[1760211218762,0.5196199,111440.0,111430.0,0.00586168]
[1760211218995,0.5629299,111440.0,111430.0,0.00586168]
[1760211219653,0.17948487,111430.0,111420.0,0.01017]
[1760211219796,0.19733487,111430.0,111420.0,0.01017]
[1760211220182,0.22279487,111430.0,111420.0,0.03777023]
[1760211220384,1.15067626,111430.0,111420.0,0.02800023]
[1760211220617,1.15067626,111430.0,111420.0,0.0004]
[1760211220618,0.26134487,111430.0,111420.0,0.0004]
[1760211220846,1.15067626,111430.0,111420.0,0.0004]
[1760211221260,1.15067626,111430.0,111420.0,0.0024]
[1760211221688,1.15067626,111430.0,111420.0,0.0004]
[1760211221844,1.15067626,111430.0,111420.0,0.0014]
[1760211222042,1.15067626,111430.0,111420.0,0.0024]
[1760211224759,0.26134487,111430.0,111420.0,0.0024]
[1760211225122,1.20026528,111430.0,111420.0,0.00415592]
[1760211225326,5.90861602,111430.0,111420.0,0.00415592]
[1760211225766,5.67371322,111430.0,111420.0,0.00415592]
[1760211225971,4.9638667,111430.0,111420.0,0.00415592]
[1760211226169,1.48484735,111430.0,111420.0,0.00215592]
[1760211227824,0.55696596,111430.0,111420.0,0.03946592]
[1760211228025,0.55696596,111430.0,111420.0,0.01370592]
[1760211228226,1.48485735,111430.0,111420.0,0.00788151]
[1760211228374,1.48485735,111430.0,111420.0,0.00215592]
[1760211228575,5.85342005,111430.0,111420.0,0.00215592]
[1760211228975,0.17950098,111420.0,111410.0,0.02861617]
[1760211229201,0.17953321,111400.0,111390.0,0.00067602]
[1760211229489,0.19794321,111400.0,111390.0,0.00067602]
[1760211229699,1.08725848,111410.0,111390.0,0.20598535]
[1760211229880,1.08725848,111410.0,111400.0,0.0151]
[1760211229881,0.17951709,111410.0,111400.0,0.0151]
[1760211230020,0.17951709,111410.0,111400.0,0.04086]
[1760211230428,0.00015108,111410.0,111400.0,0.22039321]
[1760211230630,0.00015108,111410.0,111400.0,0.27245511]
[1760211230873,0.00015108,111410.0,111400.0,0.30537311]
[1760211231257,0.00015108,111410.0,111400.0,0.28346311]
[1760211231428,0.22131817,111410.0,111400.0,0.048018]
[1760211231645,0.17953321,111400.0,111390.0,0.18122277]
[1760211231852,0.25987817,111410.0,111390.0,0.20698277]
[1760211231853,0.19807817,111410.0,111390.0,0.20698277]
[1760211232086,0.00015108,111410.0,111400.0,0.21654321]
[1760211232280,0.00015108,111410.0,111400.0,0.27245511]
[1760211232514,0.00015108,111410.0,111400.0,0.27345511]
[1760211233493,0.22131817,111410.0,111400.0,0.0720119]
[1760211233694,0.22131817,111410.0,111400.0,0.25154511]
[1760211233902,0.22131817,111410.0,111400.0,0.0720119]
[1760211234109,1.14920956,111410.0,111400.0,0.002]
[1760211234319,0.22131817,111410.0,111400.0,0.0171]
[1760211234522,0.22131817,111410.0,111400.0,0.06259232]
[1760211234770,0.17966817,111410.0,111400.0,0.24212553]
[1760211234979,0.00015108,111410.0,111400.0,0.26403553]
[1760211235594,0.00015108,111410.0,111400.0,0.29418743]
[1760211237668,0.00015108,111410.0,111400.0,1.56123882]
[1760211237871,0.00015108,111410.0,111400.0,0.67190743]
[1760211239926,0.00015108,111410.0,111400.0,0.67307842]
[1760211241465,0.00015108,111410.0,111400.0,0.66181899]
[1760211241671,0.00015108,111410.0,111400.0,0.32181899]
[1760211241876,0.25987817,111410.0,111400.0,0.03889099]
[1760211242291,0.22131817,111410.0,111400.0,0.04473099]
[1760211242737,0.22131817,111410.0,111400.0,0.06497099]
[1760211243607,0.22131817,111410.0,111400.0,0.33367099]
[1760211243818,0.25987817,111410.0,111400.0,0.03889099]
[1760211244027,1.14920956,111410.0,111400.0,0.03889099]
[1760211244235,1.48920956,111410.0,111400.0,0.03889099]
[1760211245306,0.51966817,111410.0,111400.0,0.05913099]
[1760211245522,0.56131817,111410.0,111400.0,0.06402351]
[1760211245736,1.48920956,111410.0,111400.0,0.03889099]
[1760211247616,0.56131817,111410.0,111400.0,0.03889099]
[1760211247825,0.59987817,111410.0,111400.0,0.03889099]
[1760211249103,1.48920956,111410.0,111400.0,0.03889099]
[1760211249328,1.48920956,111410.0,111400.0,0.02889099]
[1760211250584,5.94752501,111410.0,111400.0,0.02889099]
[1760211250803,5.94752501,111410.0,111400.0,0.00117099]
[1760211251423,0.17956545,111380.0,111370.0,0.17958134]
[1760211251629,0.17956545,111380.0,111360.0,0.21612709]
[1760211251836,0.17956545,111380.0,111370.0,0.19389157]
[1760211252062,0.19809285,111390.0,111370.0,0.23489344]
[1760211252291,0.23567285,111390.0,111370.0,0.23489344]
[1760211252534,0.17954995,111390.0,111380.0,0.18850545]
[1760211252730,0.22250995,111390.0,111380.0,0.00894]
[1760211253336,0.26008995,111390.0,111370.0,0.23950251]
[1760211253554,0.19809545,111380.0,111370.0,0.05094187]
[1760211253763,0.26010545,111380.0,111370.0,0.001]
[1760211253981,0.17958157,111370.0,111360.0,0.00894]
[1760211254388,0.17958157,111370.0,111360.0,0.1885377]
[1760211254389,0.04296,111370.0,111360.0,0.1885377]
[1760211254607,1.14945296,111370.0,111350.0,0.22663535]
[1760211254821,1.11187296,111370.0,111360.0,0.1939077]
[1760211255025,0.22254157,111370.0,111360.0,0.01431]
[1760211255245,0.04296,111370.0,111360.0,0.1811034]
[1760211255449,0.01853,111370.0,111360.0,0.1944134]
[1760211255658,0.04296,111370.0,111360.0,0.1944134]
[1760211255888,1.13398511,111380.0,111360.0,0.1944134]
[1760211255889,0.17956545,111380.0,111370.0,0.17958157]
[1760211256097,0.17956545,111380.0,111370.0,0.01431]
[1760211256098,0.22252545,111380.0,111370.0,0.01431]
[1760211256308,0.01853,111390.0,111380.0,0.17956545]
[1760211256517,0.26008933,111390.0,111370.0,0.17958157]
[1760211256725,0.19809545,111380.0,111360.0,0.22328383]
[1760211256936,0.20401157,111370.0,111360.0,0.25876585]
[1760211257158,0.22254157,111370.0,111360.0,0.1954134]
[1760211257365,0.22254157,111370.0,111360.0,0.1811034]
[1760211257618,0.22254157,111370.0,111360.0,0.1944134]
[1760211258048,0.23567545,111380.0,111360.0,0.1954134]
[1760211258470,0.02443,111370.0,111360.0,0.1944134]
[1760211258687,0.02443,111370.0,111360.0,0.23830628]
[1760211258930,0.1980832,111390.0,111370.0,0.17958157]
[1760211259141,0.22252545,111380.0,111360.0,0.21031062]
[1760211259352,0.26010545,111380.0,111360.0,0.21031062]
[1760211259555,0.19811157,111370.0,111360.0,0.21031062]
[1760211259770,0.04296,111370.0,111360.0,0.21031062]
[1760211259983,0.01853,111370.0,111360.0,0.22262062]
[1760211260186,0.20706066,111390.0,111370.0,0.17958157]
[1760211260391,0.54706066,111390.0,111380.0,0.19387545]
[1760211260603,0.38296,111390.0,111380.0,0.19387545]
[1760211260809,0.35853,111390.0,111380.0,0.19387545]
[1760211261018,0.56250933,111390.0,111380.0,0.17956545]
[1760211261222,0.56250933,111390.0,111370.0,0.18887332]
[1760211261634,0.56250933,111390.0,111380.0,0.17956545]
[1760211261841,0.56250933,111390.0,111380.0,0.03571726]
[1760211262054,0.17956545,111380.0,111360.0,0.17339762]
[1760211262283,0.17958157,111370.0,111350.0,0.26228013]
[1760211262486,0.26012157,111370.0,111360.0,0.00234301]
[1760211263538,0.22254157,111370.0,111360.0,0.19067071]
[1760211263738,0.20707372,111380.0,111360.0,0.23341977]
[1760211263955,0.20707372,111380.0,111360.0,0.23107676]
[1760211264166,0.53808535,111390.0,111380.0,0.17956545]
[1760211264376,0.56251535,111390.0,111370.0,0.17958157]
[1760211264579,0.56251535,111390.0,111380.0,0.17956545]
[1760211264796,0.01853,111400.0,111380.0,0.22226292]
[1760211265019,0.17953321,111400.0,111390.0,0.00546]
[1760211265289,0.04296,111400.0,111390.0,0.18500933]
[1760211265493,0.26007321,111400.0,111390.0,0.00546]
[1760211265705,0.22249321,111400.0,111390.0,0.01419]
[1760211265911,0.22249321,111400.0,111390.0,0.20778162]
[1760211266356,0.22249321,111400.0,111380.0,0.21353292]
[1760211266357,0.05611,111400.0,111380.0,0.18854372]
[1760211266571,0.05611,111400.0,111350.0,0.22670892]
[1760211266572,0.34,111380.0,111350.0,0.22670892]
[1760211266789,1.46500732,111380.0,111360.0,0.00546]
[1760211267011,0.17958157,111370.0,111360.0,0.00546]
[1760211267222,0.17958157,111370.0,111360.0,0.1850577]
[1760211267433,0.53809593,111380.0,111370.0,0.02431]
[1760211267641,0.56252593,111380.0,111360.0,0.26936184]
[1760211267850,0.56252593,111380.0,111360.0,0.23134184]
[1760211268087,0.17958157,111370.0,111360.0,0.05174486]
[1760211268295,0.51958157,111370.0,111360.0,0.05174486]
[1760211268506,0.34,111370.0,111360.0,0.29367256]
[1760211268911,0.51958157,111370.0,111360.0,0.29367256]
[1760211269153,0.34,111370.0,111360.0,0.29367256]
[1760211269358,0.51958157,111370.0,111360.0,0.29467256]
[1760211269556,0.34,111370.0,111360.0,0.29801557]
[1760211269781,0.19809593,111380.0,111360.0,0.29801557]
[1760211269996,0.20401157,111370.0,111360.0,0.07805486]
[1760211270205,0.22254157,111370.0,111360.0,0.03177]
[1760211270418,0.19811157,111370.0,111360.0,0.03177]
[1760211270630,0.26012157,111370.0,111360.0,0.00434301]
[1760211270842,0.26012157,111370.0,111360.0,0.00234301]
[1760211270843,1.26199896,111370.0,111360.0,0.00234301]
[1760211271050,1.22730491,111370.0,111360.0,0.00334301]
[1760211271270,1.18148316,111370.0,111360.0,0.00334301]
[1760211271481,1.18148316,111370.0,111360.0,3.01e-06]
[1760211271482,5.52005716,111370.0,111360.0,3.01e-06]
[1760211271712,5.89475121,111370.0,111360.0,3.01e-06]
[1760211272209,0.1795977,111360.0,111350.0,0.03827167]
[1760211272416,1.80486209,111360.0,111350.0,0.03827167]
[1760211273071,1.48946909,111360.0,111350.0,0.03827167]
[1760211273283,0.6001377,111360.0,111350.0,0.03827167]
[1760211273699,1.23634494,111360.0,111350.0,0.03827167]
[1760211273908,5.65474387,111360.0,111350.0,0.03827167]
[1760211274120,0.17962996,111340.0,111320.0,0.01776183]
[1760211274333,0.8343672,111340.0,111330.0,0.00345447]
[1760211274539,0.26016996,111340.0,111320.0,0.19755787]
[1760211274778,0.23575609,111330.0,111320.0,0.00013573]
[1760211274991,0.19817609,111330.0,111320.0,0.00013573]
[1760211275205,0.01853,111330.0,111320.0,0.17979796]
[1760211275417,0.04296,111330.0,111320.0,0.17979796]
[1760211275628,0.8719472,111340.0,111320.0,0.17979796]
[1760211275629,0.01853,111340.0,111320.0,0.24312796]
[1760211275839,0.8343672,111340.0,111320.0,0.28752941]
[1760211276042,0.8343672,111340.0,111320.0,0.24850941]
[1760211276043,0.23573996,111340.0,111320.0,0.24850941]
[1760211276257,0.04296,111330.0,111320.0,0.22419941]
[1760211276465,0.89639333,111330.0,111320.0,0.00213573]
[1760211276673,0.01853,111330.0,111320.0,0.02544573]
[1760211276903,0.67916724,111330.0,111320.0,0.00013573]
[1760211277109,0.8343672,111340.0,111320.0,0.20410796]
[1760211277347,0.17964609,111330.0,111320.0,0.24940974]
[1760211277560,0.17964609,111330.0,111320.0,0.24590649]
[1760211277779,0.22260609,111330.0,111320.0,0.21484161]
[1760211278014,0.22260609,111330.0,111320.0,0.23915161]
[1760211278231,0.22260609,111330.0,111320.0,0.07061178]
[1760211278438,0.26018609,111330.0,111320.0,0.04530178]
[1760211278655,0.22260609,111330.0,111320.0,0.002]
[1760211278864,0.22260609,111330.0,111320.0,0.001]
[1760211279292,0.26018609,111330.0,111320.0,0.001]
[1760211279495,0.89639333,111330.0,111320.0,0.001]
[1760211279697,0.85881333,111330.0,111320.0,0.02531]
[1760211279904,0.04296,111330.0,111320.0,0.22675902]
[1760211280110,0.19817609,111330.0,111320.0,0.22675902]
[1760211280326,0.19815996,111340.0,111330.0,0.17964609]
[1760211280582,1.1987972,111340.0,111320.0,0.20244902]
[1760211280789,0.17964609,111330.0,111320.0,0.20244902]
[1760211280998,0.22260609,111330.0,111320.0,0.02278679]
[1760211281459,1.1743672,111340.0,111320.0,0.25727227]
[1760211281676,0.01853,111360.0,111330.0,0.23966839]
[1760211281879,0.83433494,111360.0,111340.0,0.19253996]
[1760211282083,1.17433494,111360.0,111350.0,0.01274]
[1760211282286,0.17961383,111350.0,111330.0,0.24832877]
[1760211282505,0.17961383,111350.0,111330.0,0.08985228]
[1760211282506,0.02514,111340.0,111330.0,0.08985228]
[1760211282715,0.17964609,111330.0,111320.0,0.001]
[1760211282926,0.19750609,111330.0,111320.0,0.17751165]
[1760211283134,0.043,111330.0,111320.0,0.20248165]
[1760211283346,0.043,111330.0,111320.0,0.20482593]
[1760211283548,0.19748996,111340.0,111330.0,0.17964609]
[1760211283761,0.19748996,111340.0,111330.0,0.21752609]
[1760211283966,0.01786,111340.0,111330.0,0.21752609]
[1760211284170,0.58381452,111350.0,111340.0,0.17962996]
[1760211284375,0.60895452,111350.0,111340.0,0.02858701]
[1760211284584,1.24516176,111350.0,111340.0,0.02858701]
[1760211284791,1.20780176,111350.0,111340.0,0.02858701]
[1760211284995,0.54645452,111350.0,111340.0,0.24609697]
[1760211285207,1.20780176,111350.0,111340.0,0.24609697]
[1760211285415,1.24516176,111350.0,111340.0,0.02858701]
[1760211285827,0.17962996,111340.0,111330.0,0.01291]
[1760211286184,0.17962996,111340.0,111330.0,0.03788]
[1760211286590,0.20476996,111340.0,111330.0,0.21752609]
[1760211286790,0.22262996,111340.0,111330.0,0.03788]
[1760211287162,0.17962996,111340.0,111330.0,0.21752609]
[1760211287346,0.17962996,111340.0,111330.0,0.26296918]
[1760211287977,1.18266176,111350.0,111330.0,0.26296918]
[1760211288239,0.20476996,111340.0,111330.0,0.08332309]
[1760211288659,0.22262996,111340.0,111330.0,0.03788]
[1760211288855,0.22262996,111340.0,111330.0,0.01291]
[1760211289072,0.25998996,111340.0,111330.0,0.00175805]
[1760211289270,0.22262996,111340.0,111330.0,0.00175805]
[1760211289480,0.22262996,111340.0,111330.0,0.03963805]
[1760211289689,0.34,111350.0,111330.0,0.32880492]
[1760211289928,0.01853,111360.0,111340.0,0.21712996]
[1760211289929,0.53812786,111360.0,111340.0,0.21712996]
[1760211290147,0.17961383,111350.0,111340.0,0.17962996]
[1760211290353,1.2116951,111360.0,111340.0,0.17962996]
[1760211290570,0.25997383,111350.0,111330.0,0.23169029]
[1760211290783,0.25997383,111350.0,111340.0,0.17962996]
[1760211291197,0.17962996,111340.0,111330.0,0.01291]
[1760211291437,0.19748996,111340.0,111330.0,0.19255609]
[1760211291600,0.22262996,111340.0,111330.0,0.21752609]
[1760211291799,0.043,111340.0,111330.0,0.23071609]
[1760211292010,0.01786,111340.0,111330.0,0.27615918]
[1760211292691,0.01786,111350.0,111330.0,0.27615918]
[1760211292903,0.17961383,111350.0,111340.0,0.01796299]
[1760211293290,0.22261383,111350.0,111330.0,0.32782338]
[1760211293517,0.72261383,111350.0,111340.0,0.20459996]
[1760211293744,0.67961383,111350.0,111340.0,0.22836665]
[1760211293995,0.72261383,111350.0,111340.0,0.17962996]
[1760211294208,1.39618107,111350.0,111330.0,0.24488029]
[1760211294424,0.75997383,111350.0,111330.0,0.24488029]
[1760211294889,0.72261383,111350.0,111340.0,0.02497]
[1760211295131,0.72261383,111350.0,111340.0,0.17962996]
[1760211295365,0.75997383,111350.0,111340.0,0.18080189]
[1760211295898,0.75997383,111350.0,111340.0,0.22337011]
[1760211296147,1.39618107,111350.0,111340.0,0.00117193]
[1760211297272,0.75997383,111350.0,111340.0,0.00117193]
[1760211297476,1.39618107,111350.0,111340.0,0.00117193]
[1760211298173,0.543,111350.0,111340.0,0.18080189]
[1760211298386,0.51786,111350.0,111340.0,0.24532492]
[1760211298598,0.5,111350.0,111340.0,0.31297682]
[1760211299035,0.5,111350.0,111340.0,0.27547682]
[1760211300040,0.5,111350.0,111340.0,0.31297682]
[1760211300237,0.52514,111350.0,111340.0,0.27547682]
[1760211300443,1.39618107,111350.0,111340.0,0.00117193]
[1760211300644,1.76840889,111350.0,111340.0,0.00117193]
[1760211300970,6.74319013,111350.0,111340.0,0.00117193]
[1760211301183,6.75976221,111350.0,111340.0,0.00117193]
[1760211301400,0.17962996,111340.0,111330.0,0.01319]
[1760211301605,0.86592502,111340.0,111330.0,0.01319]
[1760211301818,0.92842502,111340.0,111330.0,0.01319]
[1760211302025,0.8961972,111340.0,111330.0,0.01377607]
[1760211303093,0.08036,111340.0,111330.0,0.01377607]
[1760211303331,0.01786,111340.0,111330.0,0.25064589]
[1760211303611,1.4950312,111350.0,111340.0,0.17962996]
[1760211303814,0.72357779,111350.0,111340.0,0.19253996]
[1760211304021,1.39714503,111350.0,111330.0,0.22567589]
[1760211304875,0.51982396,111350.0,111340.0,0.20459996]
[1760211305100,0.50096396,111350.0,111340.0,0.28887755]
[1760211305387,0.50196396,111350.0,111340.0,0.28887755]
[1760211305980,0.50196396,111350.0,111340.0,0.25137755]
[1760211306389,0.50196396,111350.0,111340.0,0.28887755]
[1760211306609,0.50096396,111350.0,111340.0,0.28887755]
[1760211306814,0.50096396,111350.0,111340.0,0.25137755]
[1760211307242,0.50096396,111350.0,111340.0,0.28887755]
[1760211307669,0.50096396,111350.0,111340.0,0.25237755]
[1760211308378,0.54396396,111350.0,111340.0,0.18062996]
[1760211308583,0.51882396,111350.0,111340.0,0.20559996]
[1760211308791,0.54396396,111350.0,111340.0,0.18062996]
[1760211309185,0.50096396,111350.0,111340.0,0.20559996]
[1760211309391,0.52610396,111350.0,111340.0,0.20559996]
[1760211309603,0.54396396,111350.0,111340.0,0.18062996]
[1760211309835,0.50096396,111350.0,111340.0,0.29181917]
[1760211310243,0.50096396,111350.0,111340.0,0.32197107]
[1760211313423,0.50096396,111350.0,111340.0,0.32187107]
[1760211315345,0.50096396,111350.0,111340.0,1.29807831]
[1760211316094,0.50096396,111350.0,111340.0,0.66187107]
[1760211319533,0.50096396,111350.0,111340.0,1.29807831]
[1760211319946,0.00096396,111350.0,111340.0,1.29807831]
[1760211320374,0.00096396,111350.0,111340.0,0.66087107]
[1760211320578,0.00096396,111350.0,111340.0,1.29707831]
[1760211320993,0.00096396,111350.0,111340.0,1.29807831]
[1760211321651,0.00096396,111350.0,111340.0,1.29907831]
[1760211322674,0.00096396,111350.0,111340.0,1.29807831]
[1760211322874,0.79097339,111390.0,111380.0,0.17956545]
[1760211323176,0.81403339,111390.0,111380.0,0.20005602]
[1760211323537,0.77964977,111390.0,111380.0,0.21291602]
[1760211323715,0.74240977,111390.0,111380.0,0.02049057]
[1760211324078,0.74256094,111390.0,111380.0,0.02049057]
[1760211324288,0.77980094,111390.0,111380.0,0.02049057]
[1760211324702,0.1063537,111390.0,111380.0,0.23693602]
[1760211325036,0.77980094,111390.0,111380.0,0.02049057]
[1760211326006,0.77980094,111390.0,111380.0,0.20005602]
[1760211326280,0.0642937,111390.0,111380.0,0.23693602]
[1760211326657,0.00015117,111390.0,111380.0,0.30448792]
[1760211327701,0.00015117,111390.0,111380.0,0.94069516]
[1760211328191,0.00015117,111390.0,111380.0,1.28069516]
[1760211328613,0.00249402,111390.0,111380.0,1.28069516]
[1760211329073,0.00249402,111390.0,111380.0,0.64448792]
[1760211329322,0.00249402,111390.0,111380.0,0.65767792]
[1760211330045,0.00249402,111390.0,111380.0,1.29488516]
[1760211330702,0.00249402,111390.0,111380.0,1.29588516]
[1760211331374,0.00249402,111390.0,111380.0,1.32088515]
[1760211332242,0.61009396,111440.0,111430.0,0.17948487]
[1760211332487,0.61009396,111440.0,111430.0,0.03589749]
[1760211332488,0.29365817,111440.0,111430.0,0.03589749]
[1760211332736,0.89548179,111440.0,111430.0,0.03589749]
[1760211332981,0.85824179,111440.0,111430.0,0.03589749]
[1760211333220,0.89548179,111440.0,111430.0,0.03589749]
[1760211333474,0.89648179,111440.0,111430.0,0.03589749]
[1760211333696,0.17948487,111430.0,111410.0,0.23909346]
[1760211333906,0.83469211,111430.0,111410.0,0.23909346]
[1760211334126,0.83469211,111430.0,111420.0,0.17950098]
[1760211334373,0.85775211,111430.0,111420.0,0.19236098]
[1760211334588,0.85775211,111430.0,111420.0,0.24108019]
[1760211334589,0.22154487,111430.0,111420.0,0.24108019]